[Event "Czech Open-E Teams 2022"]
[Site "Pardubice"]
[Date "2022.07.15"]
[Round "3.4"]
[White "Kraus, Tomas"]
[Black "Noha, Michal"]
[Result "1-0"]
[ECO "A22"]
[WhiteElo "2488"]
[BlackElo "1949"]
[Annotator "ChessBase"]
[PlyCount "53"]
[EventDate "2022.07.14"]
[EventType "team-tourn"]
[EventCountry "CZE"]
[SourceTitle "playchess.com"]
[Source "ChessBase"]
[SourceQuality "1"]
[TimeControl "5400+30"]

1. c4 {[%emt 0:00:09]} e5 {[%emt 0:00:12]} 2. Nc3 {[%emt 0:00:22]} Nf6 {[%emt 0:00:22]} 3. Nf3 {[%emt 0:00:11]} d6 {[%emt 0:00:58]} 4. g3 {[%emt 0:04:25]} g6 {[%emt 0:02:48]} 5. Bg2 {[%emt 0:00:26]} Bg7 {[%emt 0:00:28]} 6. O-O {[%emt 0:00:17]} O-O {[%emt 0:00:42]} 7. d4 {[%emt 0:00:10]} exd4 {[%emt 0:03:28]} 8. Nxd4 {[%emt 0:00:08]} a6 {[%emt 0:01:42]} 9. b3 {[%emt 0:06:50]} Re8 {[%emt 0:01:51]} 10. Bb2 {[%emt 0:01:28]} Nbd7 {[%emt 0:03:41]} 11. Qc2 {[%emt 0:03:13]} Rb8 {[%emt 0:02:47]} 12. Rad1 {[%emt 0:03:10]} Qe7 {[%emt 0:05:22]} 13. a4 {[%emt 0:06:55]} Ne5 {[%emt 0:06:19]} 14. Nd5 {[%emt 0:09:34]} Nxd5 {[%emt 0:14:09]} 15. cxd5 {[%emt 0:00:06]} Qd8 {[%emt 0:01:50]} 16. Rc1 {[%emt 0:05:14]} Re7 {[%emt 0:01:42]} 17. h3 {[%emt 0:00:34]} f6 {[%emt 0:05:38]} 18. f4 {[%emt 0:02:17]} Nf7 {[%emt 0:00:37]} 19. e4 {[%emt 0:02:25]} f5 {[%emt 0:05:40]} 20. exf5 {[%emt 0:03:02]} Bxd4+ {[%emt 0:00:50]} 21. Bxd4 {[%emt 0:00:11]} Bxf5 {[%emt 0:00:08]} 22. Qd2 {[%emt 0:03:37]} Qd7 {[%emt 0:03:19]} 23. Ba1 {[%emt 0:03:26]} Qe8 {[%emt 0:01:39]} 24. Rfe1 {[%emt 0:00:58]} Rc8 {[%emt 0:09:09]} 25. Qc3 {[%emt 0:03:45]} Rxe1+ {[%emt 0:00:20]} 26. Rxe1 {[%emt 0:00:05]} Qf8 {[%emt 0:00:06]} 27. Qf6 {[%emt 0:01:57]} 1-0

[Event "Czech Open-E Teams 2022"]
[Site "Pardubice"]
[Date "2022.07.15"]
[Round "3.5"]
[White "Roubalik, Jakub"]
[Black "Sramek, Vojtech"]
[Result "0-1"]
[ECO "D35"]
[WhiteElo "2380"]
[BlackElo "2249"]
[Annotator "ChessBase"]
[PlyCount "72"]
[EventDate "2022.07.14"]
[EventType "team-tourn"]
[EventCountry "CZE"]
[SourceTitle "playchess.com"]
[Source "ChessBase"]
[SourceQuality "1"]
[TimeControl "5400+30"]

1. d4 {[%emt 0:00:03]} d5 {[%emt 0:00:06]} 2. c4 {[%emt 0:00:05]} e6 {[%emt 0:00:05]} 3. Nc3 {[%emt 0:00:04]} Nf6 {[%emt 0:00:06]} 4. cxd5 {[%emt 0:00:11]} Nxd5 {[%emt 0:00:07]} 5. e4 {[%emt 0:00:14]} Nxc3 {[%emt 0:00:05]} 6. bxc3 {[%emt 0:00:01]} c5 {[%emt 0:00:10]} 7. Nf3 {[%emt 0:00:52]} cxd4 {[%emt 0:00:07]} 8. cxd4 {[%emt 0:00:05]} Bb4+ {[%emt 0:00:07]} 9. Bd2 {[%emt 0:00:03]} Bxd2+ {[%emt 0:00:17]} 10. Qxd2 {[%emt 0:00:05]} O-O {[%emt 0:00:09]} 11. Bc4 {[%emt 0:00:24]} b6 {[%emt 0:00:53]} 12. O-O {[%emt 0:01:50]} Bb7 {[%emt 0:00:51]} 13. Rfe1 {[%emt 0:01:22]} Nd7 {[%emt 0:00:21]} 14. Rad1 {[%emt 0:01:32]} Rc8 {[%emt 0:00:29]} 15. Bb3 {[%emt 0:06:40]} Re8 {[%emt 0:01:02]} 16. Qe3 {[%emt 0:07:00]} Nf6 {[%emt 0:11:35]} 17. Qf4 {[%emt 0:07:10]} Nh5 {[%emt 0:02:58]} 18. Qe3 {[%emt 0:03:54]} Nf6 {[%emt 0:01:18]} 19. Qd3 {[%emt 0:01:01]} h6 {[%emt 0:18:52]} 20. Ne5 {[%emt 0:18:20]} Qc7 {[%emt 0:07:32]} 21. Qf3 {[%emt 0:02:33]} b5 {[%emt 0:04:24]} 22. Qf4 {[%emt 0:12:44]} a5 {[%emt 0:07:21]} 23. Rd3 {[%emt 0:01:47]} a4 {[%emt 0:07:05]} 24. Bd1 {[%emt 0:00:09]} Qc1 {[%emt 0:00:18]} 25. Rde3 {[%emt 0:05:26]} Qd2 {[%emt 0:12:51]} 26. Bh5 {[%emt 0:02:21]} Re7 {[%emt 0:03:13]} 27. Bxf7+ {[%emt 0:03:35]} Rxf7 {[%emt 0:00:04]} 28. Nxf7 {[%emt 0:00:09]} Kxf7 {[%emt 0:01:48]} 29. h3 {[%emt 0:06:55]} Qxd4 {[%emt 0:00:46]} 30. Rf3 {[%emt 0:11:25]} Kg8 {[%emt 0:01:09]} 31. Qh4 {[%emt 0:01:03]} Kh7 {[%emt 0:02:16]} 32. Qg3 {[%emt 0:03:15]} Qd2 {[%emt 0:02:03]} 33. Rfe3 {[%emt 0:00:34]} Rc1 {[%emt 0:01:17]} 34. Rxc1 {[%emt 0:00:11]} Qxc1+ {[%emt 0:00:05]} 35. Kh2 {[%emt 0:00:02]} Bxe4 {[%emt 0:01:21]} 36. Qe5 {[%emt 0:00:50]} Bd5 {[%emt 0:02:13]} 0-1

[Event "Czech Open-E Teams 2022"]
[Site "Pardubice"]
[Date "2022.07.15"]
[Round "3.6"]
[White "Kostka, Vit"]
[Black "Nemec, Jachym"]
[Result "1/2-1/2"]
[ECO "B31"]
[WhiteElo "2168"]
[BlackElo "2357"]
[Annotator "ChessBase"]
[PlyCount "69"]
[EventDate "2022.07.14"]
[EventType "team-tourn"]
[EventCountry "CZE"]
[SourceTitle "playchess.com"]
[Source "ChessBase"]
[SourceQuality "1"]
[TimeControl "5400+30"]

1. e4 {[%emt 0:00:11]} c5 {[%emt 0:00:07]} 2. Nf3 {[%emt 0:00:15]} Nc6 {[%emt 0:00:06]} 3. Bb5 {[%emt 0:01:06]} g6 {[%emt 0:00:08]} 4. Bxc6 {[%emt 0:00:47]} dxc6 {[%emt 0:00:09]} 5. h3 {[%emt 0:00:16]} Bg7 {[%emt 0:00:09]} 6. d3 {[%emt 0:00:14]} e5 {[%emt 0:01:32]} 7. Be3 {[%emt 0:03:52]} b6 {[%emt 0:00:19]} 8. Nbd2 {[%emt 0:01:45]} Qc7 {[%emt 0:10:19]} 9. a4 {[%emt 0:04:25]} f5 {[%emt 0:08:01]} 10. Nc4 {[%emt 0:12:01]} f4 {[%emt 0:01:54]} 11. Bd2 {[%emt 0:00:41]} Nh6 {[%emt 0:01:02]} 12. Ncxe5 {[%emt 0:13:45]} O-O {[%emt 0:13:17]} 13. Nc4 {[%emt 0:11:11]} Ba6 {[%emt 0:03:20]} 14. O-O {[%emt 0:09:13]} Bxc4 {[%emt 0:01:03]} 15. dxc4 {[%emt 0:00:08]} Bxb2 {[%emt 0:01:27]} 16. Rb1 {[%emt 0:02:23]} Bg7 {[%emt 0:00:47]} 17. Qc1 {[%emt 0:05:27]} Qf7 {[%emt 0:06:00]} 18. Re1 {[%emt 0:02:27]} Qxc4 {[%emt 0:02:42]} 19. Bxf4 {[%emt 0:01:41]} Nf7 {[%emt 0:00:45]} 20. a5 {[%emt 0:01:22]} b5 {[%emt 0:01:37]} 21. Nd2 {[%emt 0:04:02]} Qe6 {[%emt 0:00:55]} 22. c4 {[%emt 0:02:05]} Bd4 {[%emt 0:08:38]} 23. Nf3 {[%emt 0:04:37]} bxc4 {[%emt 0:01:28]} 24. Rb7 {[%emt 0:01:44]} c3 {[%emt 0:01:08]} 25. Be3 {[%emt 0:05:27]} Rad8 {[%emt 0:05:40]} 26. Rxa7 {[%emt 0:00:54]} Ne5 {[%emt 0:02:53]} 27. Ng5 {[%emt 0:03:29]} Qa2 {[%emt 0:01:39]} 28. Kh2 {[%emt 0:06:15]} Nd3 {[%emt 0:03:42]} 29. Bxd4 {[%emt 0:00:31]} cxd4 {[%emt 0:00:25]} 30. Qb1 {[%emt 0:00:24]} Qxb1 {[%emt 0:03:29]} 31. Rxb1 {[%emt 0:00:02]} Rb8 {[%emt 0:03:13]} 32. Rxb8 {[%emt 0:01:52]} Rxb8 {[%emt 0:00:04]} 33. Nxh7 {[%emt 0:00:05]} c2 {[%emt 0:00:55]} 34. Nf6+ {[%emt 0:00:04]} Kf8 {[%emt 0:00:04]} 35. Rd7 {[%emt 0:00:06]} 1/2-1/2

[Event "Czech Open-E Teams 2022"]
[Site "Pardubice"]
[Date "2022.07.15"]
[Round "3.7"]
[White "Kusa, Jakub"]
[Black "Husek, Martin"]
[Result "1/2-1/2"]
[ECO "E06"]
[WhiteElo "2353"]
[BlackElo "2132"]
[Annotator "ChessBase"]
[PlyCount "168"]
[EventDate "2022.07.14"]
[EventType "team-tourn"]
[EventCountry "CZE"]
[SourceTitle "playchess.com"]
[Source "ChessBase"]
[SourceQuality "1"]
[TimeControl "5400+30"]

1. d4 {[%emt 0:00:04]} Nf6 {[%emt 0:00:10]} 2. Nf3 {[%emt 0:00:22]} d5 {[%emt 0:00:08]} 3. c4 {[%emt 0:00:19]} e6 {[%emt 0:00:09]} 4. g3 {[%emt 0:00:17]} Be7 {[%emt 0:00:09]} 5. Bg2 {[%emt 0:00:19]} O-O {[%emt 0:00:10]} 6. O-O {[%emt 0:00:29]} dxc4 {[%emt 0:00:08]} 7. Qc2 {[%emt 0:00:21]} b5 {[%emt 0:00:11]} 8. a4 {[%emt 0:02:05]} Bb7 {[%emt 0:00:12]} 9. axb5 {[%emt 0:01:26]} a6 {[%emt 0:00:10]} 10. Nc3 {[%emt 0:02:12]} axb5 {[%emt 0:00:11]} 11. Rxa8 {[%emt 0:00:40]} Bxa8 {[%emt 0:00:09]} 12. Nxb5 {[%emt 0:00:27]} Bd5 {[%emt 0:00:38]} 13. Rd1 {[%emt 0:07:00]} Na6 {[%emt 0:02:23]} 14. Bf4 {[%emt 0:04:44]} c5 {[%emt 0:23:48]} 15. Nc3 {[%emt 0:05:34]} Nb4 {[%emt 0:33:07]} 16. Qd2 {[%emt 0:02:49]} cxd4 {[%emt 0:10:20]} 17. Qxd4 {[%emt 0:06:32]} Nc6 {[%emt 0:06:23]} 18. Qd2 {[%emt 0:02:45]} Ne4 {[%emt 0:00:11]} 19. Nxe4 {[%emt 0:23:17]} Bxe4 {[%emt 0:00:30]} 20. Qc1 Qb6 21. Ne5 {[%emt 0:02:35]} Nxe5 {[%emt 0:07:54]} 22. Bxe5 {[%emt 0:01:59]} Bxg2 {[%emt 0:00:40]} 23. Kxg2 {[%emt 0:00:12]} Qc6+ {[%emt 0:01:11]} 24. f3 {[%emt 0:00:42]} Rd8 {[%emt 0:00:23]} 25. Rxd8+ {[%emt 0:02:51]} Bxd8 {[%emt 0:00:08]} 26. Bd4 {[%emt 0:00:40]} Qd5 {[%emt 0:01:17]} 27. Qc3 {[%emt 0:03:42]} f6 {[%emt 0:00:09]} 28. e4 {[%emt 0:00:31]} Qb5 {[%emt 0:00:19]} 29. Qa3 {[%emt 0:02:47]} Qd7 {[%emt 0:03:36]} 30. Qc5 {[%emt 0:02:24]} Qc7 {[%emt 0:01:12]} 31. Qb5 {[%emt 0:00:21]} Kf7 {[%emt 0:02:18]} 32. Qh5+ {[%emt 0:00:20]} Kf8 {[%emt 0:01:15]} 33. Qxh7 {[%emt 0:01:02]} e5 {[%emt 0:01:52]} 34. Qh8+ {[%emt 0:04:50]} Kf7 {[%emt 0:00:09]} 35. Qh5+ {[%emt 0:00:56]} Kf8 {[%emt 0:00:13]} 36. Bc3 {[%emt 0:01:15]} Qd6 {[%emt 0:00:07]} 37. Qf5 {[%emt 0:01:14]} Kf7 {[%emt 0:04:05]} 38. h4 {[%emt 0:03:36]} Bb6 {[%emt 0:00:22]} 39. h5 {[%emt 0:00:51]} Be3 {[%emt 0:02:27]} 40. Qc8 {[%emt 0:03:14]} Qc5 {[%emt 0:00:36]} 41. Qd7+ {[%emt 0:03:16]} Kg8 {[%emt 0:00:08]} 42. Kh3 {[%emt 0:00:40]} Bd4 {[%emt 0:00:22]} 43. Kg4 {[%emt 0:01:19]} Kh7 {[%emt 0:01:01]} 44. Qe8 {[%emt 0:01:07]} Be3 {[%emt 0:00:27]} 45. Qd7 {[%emt 0:02:00]} Bh6 {[%emt 0:00:36]} 46. Bd2 {[%emt 0:02:35]} Bxd2 {[%emt 0:00:10]} 47. Qxd2 {[%emt 0:00:12]} Qd4 {[%emt 0:00:05]} 48. Qc2 {[%emt 0:01:06]} Qd7+ {[%emt 0:01:18]} 49. Kh4 {[%emt 0:00:01]} Qd3 {[%emt 0:00:34]} 50. Qg2 {[%emt 0:01:08]} c3 {[%emt 0:00:51]} 51. bxc3 {[%emt 0:00:54]} Qxc3 {[%emt 0:00:00]} 52. Qe2 {[%emt 0:00:58]} Qc1 {[%emt 0:00:00]} 53. g4 {[%emt 0:01:09]} Qh1+ {[%emt 0:00:16]} 54. Kg3 {[%emt 0:00:02]} Qg1+ {[%emt 0:00:16]} 55. Qg2 {[%emt 0:00:16]} Qe1+ {[%emt 0:01:07]} 56. Qf2 {[%emt 0:00:08]} Qh1 {[%emt 0:00:24]} 57. Qe3 {[%emt 0:01:20]} Qf1 {[%emt 0:01:31]} 58. g5 {[%emt 0:01:12]} fxg5 {[%emt 0:00:27]} 59. Kg4 {[%emt 0:00:17]} Qg2+ {[%emt 0:00:30]} 60. Kf5 {[%emt 0:00:03]} Qg3 {[%emt 0:00:32]} 61. Qxg5 {[%emt 0:01:10]} Qxf3+ {[%emt 0:00:09]} 62. Kxe5 {[%emt 0:00:07]} Qc3+ {[%emt 0:00:23]} 63. Kd6 {[%emt 0:00:53]} Qb4+ {[%emt 0:00:22]} 64. Ke5 {[%emt 0:00:22]} Qc5+ {[%emt 0:00:38]} 65. Kf4 {[%emt 0:00:04]} Qf2+ {[%emt 0:00:47]} 66. Kg4 {[%emt 0:00:10]} Qe2+ {[%emt 0:00:41]} 67. Kf5 {[%emt 0:00:42]} Qf3+ {[%emt 0:00:14]} 68. Ke5 {[%emt 0:00:43]} Qc3+ {[%emt 0:00:08]} 69. Ke6 {[%emt 0:00:20]} Qc6+ {[%emt 0:00:58]} 70. Kf7 {[%emt 0:01:41]} Qb7+ {[%emt 0:00:42]} 71. Qe7 {[%emt 0:00:28]} Qb3+ {[%emt 0:00:21]} 72. Qe6 {[%emt 0:00:34]} Qb7+ {[%emt 0:00:10]} 73. Ke8 {[%emt 0:00:17]} Qb5+ {[%emt 0:00:23]} 74. Kd8 {[%emt 0:00:55]} Qa5+ {[%emt 0:00:17]} 75. Ke7 {[%emt 0:00:34]} Qc5+ {[%emt 0:01:00]} 76. Qd6 {[%emt 0:00:38]} Qg5+ {[%emt 0:00:18]} 77. Kd7 {[%emt 0:00:12]} Qb5+ {[%emt 0:00:54]} 78. Qc6 {[%emt 0:00:44]} Qxh5 {[%emt 0:00:09]} 79. Qd5 {[%emt 0:01:02]} Qxd5+ {[%emt 0:00:49]} 80. exd5 {[%emt 0:00:01]} g5 {[%emt 0:00:10]} 81. d6 {[%emt 0:00:08]} g4 {[%emt 0:00:06]} 82. Ke6 {[%emt 0:00:15]} g3 {[%emt 0:00:06]} 83. d7 {[%emt 0:00:06]} g2 {[%emt 0:00:04]} 84. d8=Q {[%emt 0:00:05]} g1=Q {[%emt 0:00:03]} 1/2-1/2

[Event "Czech Open-E Teams 2022"]
[Site "Pardubice"]
[Date "2022.07.15"]
[Round "3.8"]
[White "Walica, Roman"]
[Black "Pisk, Petr"]
[Result "0-1"]
[ECO "B30"]
[WhiteElo "2123"]
[BlackElo "2329"]
[Annotator "ChessBase"]
[PlyCount "49"]
[EventDate "2022.07.14"]
[EventType "team-tourn"]
[EventCountry "CZE"]
[SourceTitle "playchess.com"]
[Source "ChessBase"]
[SourceQuality "1"]
[TimeControl "5400+30"]

1. e4 {[%emt 0:00:04]} c5 {[%emt 0:02:44]} 2. Nf3 {[%emt 0:00:06]} Nc6 {[%emt 0:00:05]} 3. c4 {[%emt 0:01:08]} d6 {[%emt 0:02:38]} 4. d4 {[%emt 0:01:18]} Bg4 {[%emt 0:02:26]} 5. d5 {[%emt 0:11:40]} Nd4 {[%emt 0:01:49]} 6. Be2 {[%emt 0:08:32]} Bxf3 {[%emt 0:02:15]} 7. Bxf3 {[%emt 0:00:25]} g6 {[%emt 0:00:42]} 8. Nc3 {[%emt 0:01:00]} Bg7 {[%emt 0:01:34]} 9. O-O {[%emt 0:03:42]} Nf6 {[%emt 0:01:24]} 10. Bg4 {[%emt 0:10:05]} Nxg4 {[%emt 0:04:18]} 11. Qxg4 {[%emt 0:00:04]} Qd7 {[%emt 0:00:49]} 12. Qd1 {[%emt 0:06:47]} O-O {[%emt 0:09:47]} 13. a4 {[%emt 0:08:07]} Rfb8 {[%emt 0:05:46]} 14. Ra3 {[%emt 0:02:27]} a6 {[%emt 0:01:22]} 15. a5 {[%emt 0:12:02]} b5 {[%emt 0:03:01]} 16. axb6 {[%emt 0:00:06]} Rxb6 {[%emt 0:12:05]} 17. f4 f5 18. e5 {[%emt 0:18:22]} Rb4 {[%emt 0:11:30]} 19. Na4 {[%emt 0:11:51]} Rab8 {[%emt 0:07:31]} 20. Bd2 {[%emt 0:00:12]} Rxc4 {[%emt 0:05:20]} 21. Bc3 {[%emt 0:00:28]} dxe5 {[%emt 0:06:37]} 22. fxe5 {[%emt 0:01:28]} Qxd5 {[%emt 0:05:32]} 23. b3 {[%emt 0:00:29]} Rxc3 {[%emt 0:07:53]} 24. Nxc3 {[%emt 0:00:02]} Qxe5 {[%emt 0:00:05]} 25. Rxa6 0-1

[Event "Czech Open-E Teams 2022"]
[Site "Pardubice"]
[Date "2022.07.15"]
[Round "3.9"]
[White "Sprenar, Petr"]
[Black "Cerveny, Martin"]
[Result "0-1"]
[ECO "D11"]
[WhiteElo "2276"]
[BlackElo "2396"]
[Annotator "ChessBase"]
[PlyCount "92"]
[EventDate "2022.07.14"]
[EventType "team-tourn"]
[EventCountry "CZE"]
[SourceTitle "playchess.com"]
[Source "ChessBase"]
[SourceQuality "1"]
[TimeControl "5400+30"]

1. d4 {[%emt 0:00:01]} d5 {[%emt 0:00:38]} 2. c4 {[%emt 0:00:17]} c6 {[%emt 0:00:05]} 3. Nf3 {[%emt 0:00:24]} Nf6 {[%emt 0:00:09]} 4. Qc2 {[%emt 0:03:39]} g6 {[%emt 0:03:05]} 5. Bf4 {[%emt 0:02:47]} Bg7 {[%emt 0:00:32]} 6. e3 {[%emt 0:03:27]} O-O {[%emt 0:03:03]} 7. Nc3 {[%emt 0:02:35]} c5 {[%emt 0:04:43]} 8. dxc5 {[%emt 0:08:26]} Na6 {[%emt 0:04:34]} 9. cxd5 {[%emt 0:05:52]} Nxc5 {[%emt 0:01:24]} 10. e4 {[%emt 0:03:04]} Bg4 {[%emt 0:08:16]} 11. Ne5 {[%emt 0:08:47]} Rc8 {[%emt 0:08:32]} 12. Nxg4 {[%emt 0:07:13]} Nxg4 {[%emt 0:00:08]} 13. Be2 {[%emt 0:05:09]} Nf6 {[%emt 0:01:04]} 14. f3 a6 {[%emt 0:11:01]} 15. O-O {[%emt 0:08:26]} b5 {[%emt 0:00:18]} 16. Qd2 {[%emt 0:05:32]} Qa5 {[%emt 0:09:04]} 17. Rfc1 {[%emt 0:04:45]} Rfd8 {[%emt 0:01:23]} 18. Nd1 {[%emt 0:02:27]} Qa4 {[%emt 0:03:44]} 19. Be3 {[%emt 0:04:01]} Nfd7 {[%emt 0:01:47]} 20. Kf1 {[%emt 0:04:32]} f5 {[%emt 0:05:18]} 21. exf5 {[%emt 0:01:42]} gxf5 {[%emt 0:00:09]} 22. g3 {[%emt 0:02:13]} Nb7 {[%emt 0:02:55]} 23. Rxc8 {[%emt 0:01:07]} Rxc8 {[%emt 0:00:02]} 24. Rc1 {[%emt 0:01:05]} Rd8 {[%emt 0:00:20]} 25. Rc7 {[%emt 0:04:51]} Nd6 {[%emt 0:00:21]} 26. b3 {[%emt 0:00:43]} Qa3 {[%emt 0:00:08]} 27. Bg5 {[%emt 0:00:58]} Nf7 {[%emt 0:02:33]} 28. Bf4 {[%emt 0:00:52]} Nf6 {[%emt 0:00:58]} 29. Qc2 {[%emt 0:07:10]} Nxd5 {[%emt 0:02:09]} 30. Rc8 {[%emt 0:02:16]} Nxf4 {[%emt 0:00:12]} 31. Rxd8+ {[%emt 0:00:16]} Nxd8 {[%emt 0:00:06]} 32. gxf4 {[%emt 0:00:02]} e6 {[%emt 0:00:08]} 33. Qc7 {[%emt 0:00:25]} Bf6 {[%emt 0:00:14]} 34. Qc2 {[%emt 0:01:11]} Qd6 {[%emt 0:00:09]} 35. Qc1 {[%emt 0:00:36]} Nc6 {[%emt 0:00:47]} 36. Nf2 {[%emt 0:00:26]} Nb4 {[%emt 0:01:31]} 37. a4 {[%emt 0:00:19]} bxa4 {[%emt 0:00:56]} 38. bxa4 {[%emt 0:00:00]} a5 {[%emt 0:00:26]} 39. Qc8+ {[%emt 0:01:23]} Kg7 {[%emt 0:00:11]} 40. Qb7+ {[%emt 0:00:43]} Kg6 {[%emt 0:00:19]} 41. Qb5 {[%emt 0:00:39]} Nd5 {[%emt 0:04:56]} 42. Qe8+ {[%emt 0:00:20]} Kg7 {[%emt 0:00:13]} 43. Nd3 {[%emt 0:00:29]} Qb6 {[%emt 0:02:15]} 44. Qb5 {[%emt 0:00:47]} Qe3 {[%emt 0:01:22]} 45. Qd7+ {[%emt 0:00:25]} Kh6 {[%emt 0:00:27]} 46. Qe8 {[%emt 0:00:37]} Nc3 {[%emt 0:00:35]} 0-1

[Event "Czech Open-E Teams 2022"]
[Site "Pardubice"]
[Date "2022.07.15"]
[Round "3.10"]
[White "Szotkowski, Jakub"]
[Black "Tichy, Stepan"]
[Result "1/2-1/2"]
[ECO "E01"]
[WhiteElo "2344"]
[BlackElo "2207"]
[Annotator "ChessBase"]
[PlyCount "144"]
[EventDate "2022.07.14"]
[EventType "team-tourn"]
[EventCountry "CZE"]
[SourceTitle "playchess.com"]
[Source "ChessBase"]
[SourceQuality "1"]
[TimeControl "5400+30"]

1. d4 {[%emt 0:00:06]} e6 {[%emt 0:00:06]} 2. c4 {[%emt 0:00:22]} Nf6 {[%emt 0:00:14]} 3. g3 {[%emt 0:00:28]} d5 {[%emt 0:01:17]} 4. Bg2 {[%emt 0:00:07]} Bb4+ {[%emt 0:02:20]} 5. Bd2 {[%emt 0:00:08]} Bxd2+ {[%emt 0:00:32]} 6. Nxd2 {[%emt 0:03:13]} O-O {[%emt 0:05:34]} 7. Ngf3 {[%emt 0:03:43]} Nbd7 {[%emt 0:02:10]} 8. O-O {[%emt 0:02:46]} c6 {[%emt 0:04:44]} 9. Qc2 Qe7 10. e4 {[%emt 0:07:37]} dxe4 {[%emt 0:00:36]} 11. Nxe4 {[%emt 0:01:12]} Nxe4 {[%emt 0:07:30]} 12. Qxe4 {[%emt 0:00:11]} a5 {[%emt 0:03:09]} 13. Rfe1 {[%emt 0:03:19]} Qb4 {[%emt 0:06:58]} 14. Qc2 {[%emt 0:01:58]} h6 {[%emt 0:00:29]} 15. a3 {[%emt 0:02:45]} Qb6 {[%emt 0:02:50]} 16. Rad1 {[%emt 0:00:12]} a4 {[%emt 0:04:39]} 17. Qc3 {[%emt 0:07:04]} Qa5 {[%emt 0:04:04]} 18. Ne5 {[%emt 0:05:27]} Nxe5 {[%emt 0:03:47]} 19. Rxe5 {[%emt 0:00:08]} Qc7 {[%emt 0:01:28]} 20. Re3 {[%emt 0:09:19]} Rd8 {[%emt 0:01:22]} 21. h4 {[%emt 0:05:52]} Bd7 {[%emt 0:06:30]} 22. Be4 {[%emt 0:09:10]} Qa5 {[%emt 0:08:17]} 23. Bc2 {[%emt 0:02:57]} Qxc3 {[%emt 0:00:40]} 24. bxc3 {[%emt 0:00:08]} c5 {[%emt 0:05:02]} 25. dxc5 {[%emt 0:13:10]} Bc6 {[%emt 0:01:33]} 26. Rd6 {[%emt 0:00:34]} Kf8 {[%emt 0:01:31]} 27. Red3 {[%emt 0:03:24]} Rdc8 {[%emt 0:00:21]} 28. Rd1 {[%emt 0:02:26]} Ra5 {[%emt 0:00:55]} 29. Rb1 {[%emt 0:01:08]} Rxc5 {[%emt 0:00:07]} 30. Rb4 {[%emt 0:00:22]} Ke7 {[%emt 0:01:16]} 31. Rd4 {[%emt 0:01:08]} Ra5 {[%emt 0:01:53]} 32. f4 {[%emt 0:01:32]} f6 {[%emt 0:01:26]} 33. Kf2 {[%emt 0:01:28]} g5 {[%emt 0:02:06]} 34. Bd1 {[%emt 0:07:55]} e5 {[%emt 0:06:37]} 35. fxe5 {[%emt 0:00:40]} fxe5 {[%emt 0:00:10]} 36. Rd2 {[%emt 0:00:29]} gxh4 {[%emt 0:00:33]} 37. gxh4 {[%emt 0:00:46]} Rg8 {[%emt 0:01:23]} 38. Re2 {[%emt 0:04:40]} Rg2+ {[%emt 0:01:57]} 39. Ke3 {[%emt 0:00:03]} Rg3+ {[%emt 0:00:08]} 40. Kd2 {[%emt 0:00:02]} Rh3 {[%emt 0:00:13]} 41. c5 {[%emt 0:00:27]} Rxc5 {[%emt 0:00:14]} 42. Bxa4 {[%emt 0:00:06]} Rcxc3 {[%emt 0:04:51]} 43. Bxc6 {[%emt 0:01:04]} bxc6 {[%emt 0:00:03]} 44. Rxe5+ {[%emt 0:00:12]} Kd6 {[%emt 0:00:27]} 45. Rh5 {[%emt 0:01:12]} Rxa3 {[%emt 0:00:13]} 46. Kc1 {[%emt 0:00:50]} Ra2 {[%emt 0:03:21]} 47. Rd4+ {[%emt 0:00:26]} Kc7 {[%emt 0:00:20]} 48. Kb1 {[%emt 0:00:41]} Re2 {[%emt 0:00:19]} 49. Rd1 {[%emt 0:00:05]} Re6 {[%emt 0:00:11]} 50. Kb2 {[%emt 0:00:41]} Kb6 {[%emt 0:00:17]} 51. Rc1 {[%emt 0:00:34]} Rf3 {[%emt 0:00:46]} 52. Rc2 {[%emt 0:00:51]} Rf4 {[%emt 0:00:43]} 53. Rc3 {[%emt 0:00:17]} Rb4+ {[%emt 0:01:40]} 54. Rb3 {[%emt 0:00:25]} Rb5 {[%emt 0:00:05]} 55. Rbxb5+ {[%emt 0:00:52]} cxb5 {[%emt 0:00:03]} 56. Rf5 {[%emt 0:01:00]} Ka5 {[%emt 0:00:22]} 57. Rf4 {[%emt 0:00:35]} Re2+ {[%emt 0:00:19]} 58. Kb3 {[%emt 0:00:05]} Rh2 {[%emt 0:00:11]} 59. Re4 {[%emt 0:00:07]} Rh3+ {[%emt 0:00:11]} 60. Kb2 {[%emt 0:00:02]} b4 {[%emt 0:00:31]} 61. Re5+ {[%emt 0:00:34]} Ka4 {[%emt 0:00:20]} 62. Rh5 {[%emt 0:00:04]} Rh2+ {[%emt 0:00:31]} 63. Kc1 {[%emt 0:00:06]} Kb3 {[%emt 0:01:37]} 64. Rxh6 {[%emt 0:00:04]} Rh1+ {[%emt 0:00:05]} 65. Kd2 {[%emt 0:00:02]} Kb2 {[%emt 0:00:06]} 66. Ke3 {[%emt 0:02:28]} b3 {[%emt 0:00:35]} 67. h5 {[%emt 0:01:23]} Kc3 {[%emt 0:00:52]} 68. Rc6+ {[%emt 0:00:08]} Kb4 {[%emt 0:00:07]} 69. Rb6+ {[%emt 0:00:49]} Kc5 {[%emt 0:00:14]} 70. Rb8 {[%emt 0:00:06]} Rxh5 {[%emt 0:00:30]} 71. Kd2 {[%emt 0:00:02]} Kc4 {[%emt 0:01:40]} 72. Kc1 {[%emt 0:00:12]} Rh1+ {[%emt 0:00:20]} 1/2-1/2